[Event "XX Gran Hotel Bali-A 2023"]
[Site "Benidorm"]
[Date "2023.12.05"]
[Round "6.1"]
[White "Zanan, Evgeny"]
[Black "Grigoryan, Karen H."]
[Result "1/2-1/2"]
[ECO "C72"]
[WhiteElo "2486"]
[BlackElo "2646"]
[Annotator "TA"]
[PlyCount "76"]
[EventDate "2023.12.02"]
[EventType "swiss"]
[EventCountry "ESP"]
[SourceTitle "playchess.com"]
[Source "ChessBase"]
[SourceQuality "1"]
[TimeControl "5400+30"]

{[%evp 12,76,27,27,24,27,32,29,27,24,22,33,10,0,0,0,0,-22,-13,-25,0,-33,-31,-30,-29,-26,-26,-27,-29,-40,-34,-26,-27,-29,-21,-23,-31,-77,-85,-80,-72,-103,-60,-54,-15,-17,0,-54,0,-18,0,0,0,0,0,0,0,0,0,0,0,0,0,0,0,0,0]} 1. e4 {[%emt 0:00:04]} e5 {[%emt 0:04:44]} 2. Nf3 {[%emt 0:00:10]} Nc6 {[%emt 0:00:14]} 3. Bb5 {[%emt 0:00:12]} a6 {[%emt 0:00:05]} 4. Ba4 {[%emt 0:00:21]} d6 {[%emt 0:00:07]} 5. O-O {[%emt 0:02:12]} Bd7 {[%emt 0:00:31]} 6. c4 {[%emt 0:00:37]} Nf6 {[%emt 0:04:53]} 7. Nc3 {[%emt 0:09:49]} Bg4 {[%emt 0:04:37] C72: Ruy Lopez: Deferred Steinitz: 5 0-0.} 8. h3 {[%emt 0:01:23]} Bxf3 {[%emt 0:01:09]} 9. Qxf3 {[%emt 0:00:42][%cal Od2d4]} Nd7 {[%emt 0:01:13] White has an edge.} 10. d3 {[%emt 0:07:13]} Nd4 {[%emt 0:09:15]} 11. Bxd7+ {[%emt 0:06:56]} Qxd7 {[%emt 0:00:33]} 12. Qd1 {[%emt 0:00:31] [#]} g6 $146 {[%emt 0:03:31]} ({Predecessor:} 12... f5 13. exf5 Nxf5 14. f4 O-O-O 15. b4 exf4 16. Bxf4 g5 17. Bxg5 Bg7 18. Ne2 Rde8 {0-1 Idani,P (2610)-Alonso Rosell,A (2514) Wch Blitz Almaty 2022 (20)}) 13. Be3 {[%emt 0:06:20]} Bg7 {[%emt 0:02:25]} 14. Ne2 {[%emt 0:04:25]} Nxe2+ {[%emt 0:04:04]} 15. Qxe2 {[%emt 0:01:09]} O-O {[%emt 0:00:10]} 16. f4 {[%emt 0:17:43]} exf4 {[%emt 0:05:48]} 17. Rxf4 {[%emt 0:01:14]} b5 {[%emt 0:10:36]} 18. Rc1 {[%emt 0:04:27]} c5 {[%emt 0:00:59]} 19. b3 {[%emt 0:01:28]} a5 {[%emt 0:01:18]} 20. cxb5 {[%emt 0:08:54]} Qxb5 {[%emt 0:04:12]} 21. Rc4 {[%emt 0:00:13]} Be5 {[%emt 0:04:05]} 22. Rf1 {[%emt 0:03:59]} a4 {[%emt 0:01:38]} 23. Rb1 {[%emt 0:06:23]} axb3 {[%emt 0:05:05]} 24. Rxb3 {[%emt 0:02:01]} (24. axb3 $15 {deserves consideration.} Ra3 25. b4) 24... Qa6 {[%emt 0:01:41]} 25. a4 {[%emt 0:02:46]} Rfb8 {[%emt 0:01:37]} 26. Qc2 {[%emt 0:00:06]} Rxb3 {[%emt 0:00:44]} 27. Qxb3 {[%emt 0:00:04]} Qa5 {[%emt 0:00:37][%cal Ra5e1] [#]} 28. Qd1 {[%emt 0:02:35] Repels Qe1+} Qa6 {[%emt 0:06:40]} 29. Qb3 {[%emt 0:01:45] Wards off Rb8} Qa5 {[%emt 0:04:42][%cal Ra5e1]} 30. Qd1 {[%emt 0:00:05] Repels Qe1+. The position is equal.} Qd8 {[%emt 0:00:28]} 31. d4 {[%emt 0:05:46]} cxd4 {[%emt 0:00:55]} 32. Bxd4 {[%emt 0:00:04]} d5 {[%emt 0:05:30]} 33. Rc5 {[%emt 0:05:23]} Bxd4+ {[%emt 0:00:18]} 34. Qxd4 {[%emt 0:00:00]} dxe4 {[%emt 0:00:12]} 35. Qxe4 {[%emt 0:00:00]} Qd1+ {[%emt 0:00:11]} 36. Kh2 {[%emt 0:00:00]} Qd6+ {[%emt 0:00:19]} 37. Kh1 {[%emt 0:00:00]} Qd1+ {[%emt 0:01:32]} 38. Kh2 {[%emt 0:00:00]} Qd6+ {[%emt 0:00:37] Weighted Error Value: White=0.06 (flawless) /Black=0.07 (flawless)} 1/2-1/2

[Event "XX Gran Hotel Bali-A 2023"]
[Site "Benidorm"]
[Date "2023.12.05"]
[Round "6.2"]
[White "Moskalenko, Viktor"]
[Black "Campora, Daniel H."]
[Result "1/2-1/2"]
[ECO "D02"]
[WhiteElo "2427"]
[BlackElo "2341"]
[Annotator "RC"]
[PlyCount "24"]
[EventDate "2023.12.02"]
[EventType "swiss"]
[EventCountry "ESP"]
[SourceTitle "playchess.com"]
[Source "ChessBase"]
[SourceQuality "1"]
[TimeControl "5400+30"]

1. d4 {[%emt 0:01:20]} Nf6 {[%emt 0:00:07]} 2. Bf4 {[%emt 0:00:28]} b6 {[%emt 0:03:10]} 3. e3 {[%emt 0:01:28]} Bb7 {[%emt 0:00:10]} 4. Nd2 {[%emt 0:00:55]} e6 {[%emt 0:01:09]} 5. Ngf3 {[%emt 0:00:12]} d5 {[%emt 0:04:08]} 6. c3 {[%emt 0:04:54]} Nbd7 {[%emt 0:01:01]} 7. Bd3 {[%emt 0:01:47]} Be7 {[%emt 0:00:20]} 8. Ne5 {[%emt 0:13:29]} a6 {[%emt 0:00:32]} 9. Qf3 {[%emt 0:01:19]} c5 {[%emt 0:02:35]} 10. h4 {[%emt 0:06:43]} b5 {[%emt 0:11:54]} 11. g4 {[%emt 0:11:33]} Nxe5 {[%emt 0:01:34]} 12. Bxe5 {[%emt 0:00:54]} Bd6 {[%emt 0:00:29]} 1/2-1/2

[Event "XX Gran Hotel Bali-A 2023"]
[Site "Benidorm"]
[Date "2023.12.05"]
[Round "6.3"]
[White "Ilinca, Felix-Antonio"]
[Black "Torres Sanchez, Jose"]
[Result "1-0"]
[ECO "B40"]
[WhiteElo "2395"]
[BlackElo "2196"]
[Annotator "RC"]
[PlyCount "55"]
[EventDate "2023.12.02"]
[EventType "swiss"]
[EventCountry "ESP"]
[SourceTitle "playchess.com"]
[Source "ChessBase"]
[SourceQuality "1"]
[TimeControl "5400+30"]

1. e4 {[%emt 0:00:46]} c5 {[%emt 0:00:11]} 2. Nf3 {[%emt 0:00:17]} e6 {[%emt 0:00:09]} 3. d4 {[%emt 0:00:19]} cxd4 {[%emt 0:00:21]} 4. Nxd4 {[%emt 0:00:20]} Bc5 {[%emt 0:00:19]} 5. Nb3 {[%emt 0:06:04]} Bb6 {[%emt 0:03:54]} 6. Nc3 {[%emt 0:01:40]} Ne7 {[%emt 0:01:40]} 7. Bf4 {[%emt 0:03:42]} d5 {[%emt 0:02:29]} 8. exd5 {[%emt 0:02:51]} exd5 {[%emt 0:00:37]} 9. Bd3 {[%emt 0:04:23]} Be6 {[%emt 0:06:44]} 10. Qh5 {[%emt 0:03:59]} Ng6 {[%emt 0:06:13]} 11. Bxg6 {[%emt 0:07:11]} fxg6 {[%emt 0:00:08]} 12. Qe2 {[%emt 0:00:29]} Qd7 {[%emt 0:00:09]} 13. Be3 {[%emt 0:02:14]} Nc6 {[%emt 0:02:25]} 14. O-O-O {[%emt 0:03:32]} O-O {[%emt 0:00:33]} 15. Bxb6 {[%emt 0:01:32]} axb6 {[%emt 0:00:07]} 16. Qe3 {[%emt 0:03:06]} Qf7 {[%emt 0:18:10]} 17. a3 {[%emt 0:12:57]} Na5 {[%emt 0:05:15]} 18. Nxa5 {[%emt 0:04:09]} bxa5 {[%emt 0:00:06]} 19. Rd4 {[%emt 0:00:46]} Rac8 {[%emt 0:00:57]} 20. Rhd1 {[%emt 0:03:24]} h6 {[%emt 0:02:06]} 21. f3 {[%emt 0:01:13]} Kh7 {[%emt 0:08:34]} 22. h4 {[%emt 0:03:36]} Qf5 {[%emt 0:02:02]} 23. Qd3 {[%emt 0:03:41]} Qe5 {[%emt 0:02:46]} 24. Qd2 {[%emt 0:02:17]} b6 {[%emt 0:07:07]} 25. Nxd5 {[%emt 0:01:43]} Bf5 {[%emt 0:06:07]} 26. Nc3 {[%emt 0:02:13]} Rf6 {[%emt 0:00:49]} 27. g4 {[%emt 0:01:19]} Be6 {[%emt 0:02:03]} 28. Re4 {[%emt 0:00:49]} 1-0

[Event "XX Gran Hotel Bali-A 2023"]
[Site "Benidorm"]
[Date "2023.12.05"]
[Round "6.4"]
[White "Iglesias Ferreira, Andres"]
[Black "Domingo Nunez, Ruben"]
[Result "1/2-1/2"]
[ECO "B06"]
[WhiteElo "2187"]
[BlackElo "2429"]
[Annotator "RC"]
[PlyCount "133"]
[EventDate "2023.12.02"]
[EventType "swiss"]
[EventCountry "ESP"]
[SourceTitle "playchess.com"]
[Source "ChessBase"]
[SourceQuality "1"]
[TimeControl "5400+30"]

1. e4 {[%emt 0:08:28]} g6 {[%emt 0:00:40]} 2. d4 {[%emt 0:00:52]} Bg7 {[%emt 0:00:06]} 3. Nc3 {[%emt 0:00:27]} d6 {[%emt 0:00:23]} 4. Be3 {[%emt 0:00:34]} a6 {[%emt 0:00:59]} 5. Nf3 {[%emt 0:00:43]} b5 {[%emt 0:01:54]} 6. Bd3 {[%emt 0:03:18]} Bb7 {[%emt 0:00:41]} 7. Qd2 {[%emt 0:00:36]} Nd7 {[%emt 0:03:49]} 8. a3 {[%emt 0:03:16]} c5 {[%emt 0:04:35]} 9. h3 {[%emt 0:08:51]} cxd4 {[%emt 0:13:42]} 10. Bxd4 {[%emt 0:06:59]} Bxd4 {[%emt 0:04:51]} 11. Nxd4 {[%emt 0:01:18]} Qb6 {[%emt 0:00:04]} 12. Nde2 {[%emt 0:02:33]} Ngf6 {[%emt 0:00:54]} 13. O-O {[%emt 0:04:23]} Rc8 {[%emt 0:11:27]} 14. Nf4 {[%emt 0:02:08]} e6 {[%emt 0:00:18]} 15. Rfe1 {[%emt 0:05:13]} g5 {[%emt 0:04:52]} 16. Nfe2 {[%emt 0:11:22]} Ne5 {[%emt 0:00:21]} 17. Ng3 {[%emt 0:02:01]} Rg8 {[%emt 0:06:13]} 18. Kh1 {[%emt 0:07:31]} g4 {[%emt 0:23:35]} 19. h4 {[%emt 0:05:03]} Qc5 {[%emt 0:00:30]} 20. Nce2 {[%emt 0:07:48]} Ke7 {[%emt 0:01:12]} 21. Nf4 {[%emt 0:03:13]} Ng6 {[%emt 0:04:02]} 22. b4 {[%emt 0:01:35]} Qe5 {[%emt 0:02:20]} 23. Nxg6+ {[%emt 0:00:55]} hxg6 {[%emt 0:00:05]} 24. Qg5 {[%emt 0:03:48]} Bc6 {[%emt 0:03:11]} 25. c4 {[%emt 0:02:59]} Qxg5 {[%emt 0:04:43]} 26. hxg5 {[%emt 0:00:05]} Nd7 {[%emt 0:00:02]} 27. cxb5 {[%emt 0:00:31]} Bxb5 {[%emt 0:01:21]} 28. Bxb5 {[%emt 0:00:34]} axb5 {[%emt 0:00:01]} 29. a4 {[%emt 0:00:44]} bxa4 {[%emt 0:00:08]} 30. Rxa4 {[%emt 0:00:08]} Rc4 {[%emt 0:00:02]} 31. Rd1 {[%emt 0:01:02]} Rb8 {[%emt 0:02:47]} 32. Ra6 {[%emt 0:03:06]} Rb6 {[%emt 0:00:04]} 33. Rxb6 {[%emt 0:00:35]} Nxb6 {[%emt 0:00:02]} 34. Rb1 {[%emt 0:01:35]} Kd7 {[%emt 0:00:10]} 35. f3 {[%emt 0:02:22]} gxf3 {[%emt 0:00:08]} 36. gxf3 {[%emt 0:00:15]} Kc6 {[%emt 0:00:03]} 37. Kg2 {[%emt 0:01:17]} Rc2+ {[%emt 0:01:53]} 38. Kh3 {[%emt 0:00:34]} Nc4 {[%emt 0:03:06]} 39. f4 {[%emt 0:00:32]} Rc3 {[%emt 0:00:35]} 40. Kh4 {[%emt 0:00:26]} Nd2 {[%emt 0:01:24]} 41. Ra1 {[%emt 0:00:25]} Kb7 {[%emt 0:00:44]} 42. Kg4 {[%emt 0:00:39]} Re3 {[%emt 0:01:47]} 43. Rh1 {[%emt 0:00:15]} Nxe4 {[%emt 0:01:40]} 44. Nxe4 {[%emt 0:00:05]} Rxe4 {[%emt 0:00:02]} 45. Rh7 {[%emt 0:00:10]} e5 {[%emt 0:00:23]} 46. Rxf7+ {[%emt 0:00:15]} Kc6 {[%emt 0:00:06]} 47. Kf3 {[%emt 0:00:13]} Kd5 {[%emt 0:01:30]} 48. b5 {[%emt 0:00:44]} Rb4 {[%emt 0:00:25]} 49. fxe5 {[%emt 0:00:08]} dxe5 {[%emt 0:00:26]} 50. Rf6 {[%emt 0:00:11]} Rb3+ {[%emt 0:00:14]} 51. Ke2 {[%emt 0:00:06]} Rxb5 {[%emt 0:00:09]} 52. Rxg6 {[%emt 0:00:06]} Ke4 {[%emt 0:00:01]} 53. Ra6 {[%emt 0:00:38]} Rb2+ {[%emt 0:00:10]} 54. Ke1 {[%emt 0:00:05]} Kf3 {[%emt 0:00:41]} 55. Rf6+ {[%emt 0:00:18]} Ke3 {[%emt 0:00:16]} 56. Kf1 {[%emt 0:00:19]} Rb1+ {[%emt 0:01:03]} 57. Kg2 {[%emt 0:00:05]} e4 {[%emt 0:00:16]} 58. g6 {[%emt 0:00:39]} Rb5 {[%emt 0:00:14]} 59. Kg3 {[%emt 0:00:16]} Rg5+ {[%emt 0:01:04]} 60. Kh4 {[%emt 0:00:06]} Rg1 {[%emt 0:00:04]} 61. Kh5 {[%emt 0:00:04]} Kd3 {[%emt 0:00:46]} 62. Kh6 {[%emt 0:00:06]} e3 {[%emt 0:00:50]} 63. g7 {[%emt 0:00:05]} e2 {[%emt 0:00:07]} 64. Re6 {[%emt 0:00:04]} Rg3 {[%emt 0:01:02]} 65. Kh7 {[%emt 0:00:09]} Rh3+ {[%emt 0:00:20]} 66. Kg6 {[%emt 0:00:08]} Rg3+ {[%emt 0:00:15]} 67. Kh7 {[%emt 0:00:06]} 1/2-1/2

[Event "XX Gran Hotel Bali-A 2023"]
[Site "Benidorm"]
[Date "2023.12.05"]
[Round "6.5"]
[White "Mingarro Carceller, Sergi"]
[Black "Trigo Urquijo, Sergio"]
[Result "1-0"]
[ECO "B12"]
[WhiteElo "2253"]
[BlackElo "2400"]
[Annotator "RC"]
[PlyCount "59"]
[EventDate "2023.12.02"]
[EventType "swiss"]
[EventCountry "ESP"]
[SourceTitle "playchess.com"]
[Source "ChessBase"]
[SourceQuality "1"]
[TimeControl "5400+30"]

1. e4 {[%emt 0:00:52]} c6 {[%emt 0:00:17]} 2. d4 {[%emt 0:00:22]} d5 {[%emt 0:00:16]} 3. e5 {[%emt 0:00:15]} Bf5 {[%emt 0:00:19]} 4. Nf3 {[%emt 0:00:13]} e6 {[%emt 0:00:49]} 5. Be2 {[%emt 0:00:10]} Nd7 {[%emt 0:01:10]} 6. O-O {[%emt 0:00:28]} a5 {[%emt 0:03:07]} 7. a4 {[%emt 0:01:35]} f6 {[%emt 0:01:31]} 8. c4 {[%emt 0:00:56]} fxe5 {[%emt 0:01:38]} 9. dxe5 {[%emt 0:00:10]} Bc5 {[%emt 0:01:32]} 10. Nbd2 {[%emt 0:01:11]} Ne7 {[%emt 0:02:19]} 11. Nb3 {[%emt 0:00:46]} Ba7 {[%emt 0:13:08]} 12. Nfd4 {[%emt 0:09:46]} Nxe5 {[%emt 0:20:17]} 13. g4 {[%emt 0:03:35]} Be4 {[%emt 0:04:38]} 14. Nxe6 {[%emt 0:02:13]} Qd6 {[%emt 0:03:13]} 15. Nxg7+ {[%emt 0:03:09]} Kd7 {[%emt 0:00:09]} 16. Bf4 {[%emt 0:03:13]} h5 {[%emt 0:08:47]} 17. Nd2 {[%emt 0:27:18]} Bg6 {[%emt 0:05:19]} 18. cxd5 {[%emt 0:02:29]} Qxd5 {[%emt 0:11:29]} 19. Nc4 {[%emt 0:07:55]} Nxc4 {[%emt 0:06:34]} 20. Bxc4 {[%emt 0:00:25]} Qd4 {[%emt 0:01:08]} 21. Be6+ {[%emt 0:08:39]} Kd8 {[%emt 0:00:05]} 22. Be5 {[%emt 0:00:55]} Qxd1 {[%emt 0:00:13]} 23. Raxd1+ {[%emt 0:00:08]} Nd5 {[%emt 0:00:05]} 24. Bxd5 {[%emt 0:01:29]} cxd5 {[%emt 0:00:07]} 25. Rxd5+ {[%emt 0:02:44]} Ke7 {[%emt 0:00:08]} 26. Re1 {[%emt 0:00:18]} hxg4 {[%emt 0:02:52]} 27. Bc3+ {[%emt 0:01:21]} Kf7 {[%emt 0:01:59]} 28. Ne6 {[%emt 0:05:02]} Kg8 {[%emt 0:03:54]} 29. Bxh8 {[%emt 0:02:05]} Kxh8 {[%emt 0:00:06]} 30. Rd8+ {[%emt 0:02:25]} 1-0

[Event "XX Gran Hotel Bali-A 2023"]
[Site "Benidorm"]
[Date "2023.12.05"]
[Round "6.6"]
[White "Davtyan, David Arm."]
[Black "Garcia Molina, Jose"]
[Result "1/2-1/2"]
[ECO "B52"]
[WhiteElo "2362"]
[BlackElo "2212"]
[Annotator "RC"]
[PlyCount "106"]
[EventDate "2023.12.02"]
[EventType "swiss"]
[EventCountry "ESP"]
[SourceTitle "playchess.com"]
[Source "ChessBase"]
[SourceQuality "1"]
[TimeControl "5400+30"]

1. e4 {[%emt 0:06:02]} c5 {[%emt 0:01:20]} 2. Nf3 {[%emt 0:00:54]} d6 {[%emt 0:00:36]} 3. Bb5+ {[%emt 0:00:55]} Bd7 {[%emt 0:02:01]} 4. Bxd7+ {[%emt 0:02:41]} Qxd7 {[%emt 0:00:11]} 5. c4 {[%emt 0:00:28]} e5 {[%emt 0:01:32]} 6. Nc3 {[%emt 0:01:16]} Nc6 {[%emt 0:00:33]} 7. a3 {[%emt 0:04:48]} Be7 {[%emt 0:01:16]} 8. d3 {[%emt 0:19:11]} Bd8 {[%emt 0:02:35]} 9. O-O {[%emt 0:03:41]} f5 {[%emt 0:18:27]} 10. b4 {[%emt 0:11:31]} Nf6 {[%emt 0:05:29]} 11. bxc5 {[%emt 0:10:24]} dxc5 {[%emt 0:00:53]} 12. Bg5 {[%emt 0:03:02]} O-O {[%emt 0:07:00]} 13. Bxf6 {[%emt 0:00:34]} Bxf6 {[%emt 0:01:36]} 14. Nd5 {[%emt 0:00:21]} Rf7 {[%emt 0:04:50]} 15. Nd2 {[%emt 0:06:45]} Raf8 {[%emt 0:11:46]} 16. Nb3 {[%emt 0:04:38]} b6 {[%emt 0:02:29]} 17. a4 {[%emt 0:00:23]} Bd8 {[%emt 0:02:58]} 18. f3 {[%emt 0:09:39]} f4 {[%emt 0:02:39]} 19. Qd2 {[%emt 0:02:02]} g5 {[%emt 0:02:31]} 20. a5 {[%emt 0:01:43]} Rg7 {[%emt 0:01:19]} 21. axb6 {[%emt 0:00:32]} axb6 {[%emt 0:00:01]} 22. Qd1 {[%emt 0:06:06]} h5 {[%emt 0:08:31]} 23. h3 {[%emt 0:00:01]} Kh7 {[%emt 0:00:20]} 24. Kf2 {[%emt 0:01:07]} g4 {[%emt 0:10:10]} 25. hxg4 {[%emt 0:00:02]} Bh4+ {[%emt 0:00:14]} 26. Ke2 {[%emt 0:00:29]} hxg4 {[%emt 0:00:06]} 27. Rh1 {[%emt 0:01:34]} gxf3+ {[%emt 0:00:20]} 28. Kd2 {[%emt 0:00:01]} Rxg2+ {[%emt 0:01:14]} 29. Kc3 {[%emt 0:00:00]} Qg4 {[%emt 0:00:29]} 30. Ra8 {[%emt 0:00:01]} Kg7 {[%emt 0:06:46]} 31. Rxf8 {[%emt 0:00:28]} Kxf8 {[%emt 0:01:13]} 32. Qa1 {[%emt 0:00:01]} f2 {[%emt 0:00:50]} 33. Qa8+ {[%emt 0:01:42]} Nd8 {[%emt 0:00:01]} 34. Rf1 {[%emt 0:02:11]} Qd7 {[%emt 0:02:32]} 35. Nd2 {[%emt 0:00:21]} Rg1 {[%emt 0:01:09]} 36. Qb8 {[%emt 0:00:40]} Qe6 {[%emt 0:00:40]} 37. Rxf2 {[%emt 0:00:44]} Bxf2 {[%emt 0:00:09]} 38. Qxd8+ {[%emt 0:00:05]} Kg7 {[%emt 0:00:05]} 39. Nf3 {[%emt 0:00:12]} Bd4+ {[%emt 0:00:19]} 40. Kb3 {[%emt 0:00:24]} Rg2 {[%emt 0:00:55]} 41. Nh4 {[%emt 0:00:25]} Rb2+ {[%emt 0:01:37]} 42. Ka3 {[%emt 0:00:01]} Qf7 {[%emt 0:00:53]} 43. Ne7 {[%emt 0:01:01]} b5 {[%emt 0:00:44]} 44. Nhg6 {[%emt 0:01:11]} Rh2 {[%emt 0:00:05]} 45. Nh4 {[%emt 0:02:06]} bxc4 {[%emt 0:00:28]} 46. Qd7 {[%emt 0:00:33]} Rxh4 {[%emt 0:01:03]} 47. Nf5+ {[%emt 0:00:00]} Kf6 {[%emt 0:00:00]} 48. Qd8+ {[%emt 0:00:07]} Kg6 {[%emt 0:00:33]} 49. Nxh4+ {[%emt 0:00:46]} Kh5 {[%emt 0:00:29]} 50. dxc4 {[%emt 0:01:03]} Qxc4 {[%emt 0:00:14]} 51. Qh8+ {[%emt 0:00:20]} Kg4 {[%emt 0:00:11]} 52. Qg7+ {[%emt 0:00:01]} Kxh4 {[%emt 0:00:32]} 53. Qg4+ {[%emt 0:00:02]} Kxg4 {[%emt 0:00:01]} 1/2-1/2

[Event "XX Gran Hotel Bali-A 2023"]
[Site "Benidorm"]
[Date "2023.12.05"]
[Round "6.7"]
[White "Goluch, Piotr"]
[Black "Vignesh B"]
[Result "0-1"]
[ECO "A10"]
[WhiteElo "2309"]
[BlackElo "2140"]
[Annotator "RC"]
[PlyCount "102"]
[EventDate "2023.12.02"]
[EventType "swiss"]
[EventCountry "ESP"]
[SourceTitle "playchess.com"]
[Source "ChessBase"]
[SourceQuality "1"]
[TimeControl "5400+30"]

1. Nf3 {[%emt 0:00:03]} g6 {[%emt 0:09:38]} 2. c4 {[%emt 0:01:28]} Bg7 {[%emt 0:00:03]} 3. Nc3 {[%emt 0:00:09]} e5 {[%emt 0:00:52]} 4. d3 {[%emt 0:09:56]} Ne7 {[%emt 0:00:25]} 5. h4 {[%emt 0:00:17]} h6 {[%emt 0:00:16]} 6. e4 {[%emt 0:00:56]} Nbc6 {[%emt 0:01:25]} 7. Nd5 {[%emt 0:02:36]} d6 {[%emt 0:00:16]} 8. h5 {[%emt 0:06:01]} g5 {[%emt 0:24:16]} 9. Nxg5 {[%emt 0:00:06]} Nxd5 {[%emt 0:03:21]} 10. cxd5 {[%emt 0:00:19]} hxg5 {[%emt 0:00:29]} 11. dxc6 {[%emt 0:00:05]} bxc6 {[%emt 0:00:05]} 12. Be2 {[%emt 0:00:55]} Bf6 {[%emt 0:08:24]} 13. Bg4 {[%emt 0:03:59]} Ke7 {[%emt 0:00:59]} 14. Bd2 {[%emt 0:04:32]} Rb8 {[%emt 0:00:35]} 15. b3 {[%emt 0:00:22]} c5 {[%emt 0:02:19]} 16. Rc1 {[%emt 0:02:15]} Bd7 {[%emt 0:07:06]} 17. Bf5 {[%emt 0:00:49]} Bxf5 {[%emt 0:10:33]} 18. exf5 {[%emt 0:00:04]} Kd7 {[%emt 0:00:22]} 19. Qg4 {[%emt 0:03:36]} c6 {[%emt 0:00:05]} 20. h6 {[%emt 0:01:11]} Rh7 {[%emt 0:00:57]} 21. Rc4 {[%emt 0:01:00]} Qb6 {[%emt 0:00:30]} 22. Ra4 {[%emt 0:04:38]} Rbh8 {[%emt 0:03:17]} 23. Bxg5 {[%emt 0:02:54]} Rg8 {[%emt 0:02:34]} 24. Rh5 {[%emt 0:03:08]} c4 {[%emt 0:11:39]} 25. dxc4 {[%emt 0:04:31]} e4 {[%emt 0:04:44]} 26. Qf4 {[%emt 0:15:45]} Rxg5 {[%emt 0:02:06]} 27. Rxg5 {[%emt 0:00:04]} Rxh6 {[%emt 0:01:21]} 28. Rg8 {[%emt 0:00:18]} Rh1+ {[%emt 0:01:02]} 29. Ke2 {[%emt 0:00:19]} Bc3 {[%emt 0:01:31]} 30. Qxe4 {[%emt 0:04:37]} Re1+ {[%emt 0:00:11]} 31. Kf3 {[%emt 0:00:21]} Rxe4 {[%emt 0:00:06]} 32. c5 {[%emt 0:01:19]} Qxc5 {[%emt 0:00:18]} 33. Rxe4 {[%emt 0:00:04]} Qxf5+ {[%emt 0:00:07]} 34. Rf4 {[%emt 0:01:12]} Qd5+ {[%emt 0:00:22]} 35. Ke2 {[%emt 0:00:15]} Be5 {[%emt 0:00:15]} 36. Ra4 {[%emt 0:01:20]} a5 {[%emt 0:00:10]} 37. g3 {[%emt 0:08:48]} Bc3 {[%emt 0:00:39]} 38. Rf4 {[%emt 0:00:17]} Be5 {[%emt 0:00:58]} 39. Ra4 {[%emt 0:00:52]} Bd4 {[%emt 0:00:06]} 40. Rg4 {[%emt 0:01:21]} Qh5 {[%emt 0:02:13]} 41. f3 {[%emt 0:00:25]} c5 {[%emt 0:00:53]} 42. Rxa5 {[%emt 0:00:41]} Qe5+ {[%emt 0:00:09]} 43. Re4 {[%emt 0:00:07]} Qxg3 {[%emt 0:00:05]} 44. Ra7+ {[%emt 0:00:09]} Kc6 {[%emt 0:00:02]} 45. Rxf7 {[%emt 0:00:22]} Qf2+ {[%emt 0:00:04]} 46. Kd3 {[%emt 0:01:08]} Qxa2 {[%emt 0:00:05]} 47. Ree7 {[%emt 0:00:05]} Qxb3+ {[%emt 0:00:08]} 48. Ke2 {[%emt 0:00:30]} Qc2+ {[%emt 0:00:23]} 49. Ke1 {[%emt 0:00:01]} Be5 {[%emt 0:00:44]} 50. f4 {[%emt 0:00:27]} Bxf4 {[%emt 0:00:16]} 51. Kf1 {[%emt 0:00:09]} Be5 {[%emt 0:00:09]} 0-1

[Event "XX Gran Hotel Bali-A 2023"]
[Site "Benidorm"]
[Date "2023.12.05"]
[Round "6.8"]
[White "Korneev Leskova, Svyatoslav"]
[Black "Azaryan, Tigran"]
[Result "1-0"]
[ECO "A37"]
[WhiteElo "2252"]
[BlackElo "2115"]
[Annotator "RC"]
[PlyCount "61"]
[EventDate "2023.12.02"]
[EventType "swiss"]
[EventCountry "ESP"]
[SourceTitle "playchess.com"]
[Source "ChessBase"]
[SourceQuality "1"]
[TimeControl "5400+30"]

1. c4 {[%emt 0:00:01]} c5 {[%emt 0:02:51]} 2. g3 {[%emt 0:00:18]} g6 {[%emt 0:00:16]} 3. Nc3 {[%emt 0:00:10]} Nc6 {[%emt 0:00:10]} 4. Bg2 {[%emt 0:00:08]} Bg7 {[%emt 0:00:07]} 5. Nf3 {[%emt 0:00:07]} e5 {[%emt 0:01:29]} 6. O-O {[%emt 0:00:29]} d6 {[%emt 0:00:05]} 7. a3 {[%emt 0:00:53]} a5 {[%emt 0:00:41]} 8. Ne1 {[%emt 0:01:19]} Be6 {[%emt 0:00:08]} 9. d3 {[%emt 0:00:13]} Nge7 {[%emt 0:00:07]} 10. Nc2 {[%emt 0:00:23]} d5 {[%emt 0:00:07]} 11. cxd5 {[%emt 0:00:07]} Nxd5 {[%emt 0:00:05]} 12. Ne3 {[%emt 0:00:14]} Nde7 {[%emt 0:00:07]} 13. Nc4 {[%emt 0:00:55]} O-O {[%emt 0:07:41]} 14. Qa4 {[%emt 0:01:06]} Rb8 {[%emt 0:07:22]} 15. Bg5 {[%emt 0:21:36]} f6 {[%emt 0:23:59]} 16. Be3 {[%emt 0:00:13]} Nd4 {[%emt 0:06:53]} 17. Qxa5 {[%emt 0:01:29]} b6 {[%emt 0:04:02]} 18. Qa6 {[%emt 0:02:09]} Nxe2+ {[%emt 0:01:54]} 19. Nxe2 {[%emt 0:01:16]} Qxd3 {[%emt 0:00:01]} 20. Qa7 {[%emt 0:04:39]} Bxc4 {[%emt 0:01:08]} 21. Nc3 {[%emt 0:00:35]} Nf5 {[%emt 0:11:48]} 22. Rad1 {[%emt 0:15:11]} Qc2 {[%emt 0:00:05]} 23. Rd7 {[%emt 0:00:11]} Bh8 {[%emt 0:30:54]} 24. Bd5+ {[%emt 0:03:49]} Bxd5 {[%emt 0:00:00]} 25. Nxd5 {[%emt 0:00:07]} Qb3 {[%emt 0:00:00]} 26. g4 {[%emt 0:00:53]} Ra8 {[%emt 0:00:00]} 27. Qb7 {[%emt 0:00:43]} Qa4 {[%emt 0:00:00]} 28. Nb4 {[%emt 0:11:50]} Qb3 {[%emt 0:00:00]} 29. gxf5 {[%emt 0:03:45]} cxb4 {[%emt 0:00:00]} 30. Bh6 {[%emt 0:01:15]} Rfe8 {[%emt 0:01:20]} 31. Rg7+ {[%emt 0:00:15]} 1-0